[Event "DMP-III LIGA Senior PK 2020"]
[Site "Bystre"]
[Date "2020.07.10"]
[Round "5.28"]
[White "Lach, Tomasz"]
[Black "Juszczuk, Grzegorz"]
[Result "1-0"]
[ECO "A43"]
[WhiteElo "1833"]
[BlackElo "1809"]
[Annotator "NA"]
[PlyCount "168"]
[EventDate "2020.07.05"]
[EventType "team-tourn"]
[EventCountry "POL"]
[SourceTitle "playchess.com"]
[Source "ChessBase"]
[SourceQuality "1"]
[TimeControl "5400+30"]

1. d4 {[%emt 0:00:00]} c5 {[%emt 0:00:00]} 2. c3 {[%emt 0:00:20]} g6 {[%emt 0:00:00]} 3. Nf3 {[%emt 0:01:03]} Bg7 {[%emt 0:00:00]} 4. dxc5 {[%emt 0:02:35]} Nf6 {[%emt 0:00:03]} 5. Bf4 {[%emt 0:04:15]} Nc6 {[%emt 0:01:18]} 6. e3 {[%emt 0:00:54] [#] A43: Schmid Benoni.} Nh5 $146 {[%emt 0:00:27]} ({Predecessor:} 6... O-O 7. Be2 b6 8. cxb6 Qxb6 9. Qb3 Ba6 10. Qxb6 axb6 11. Nbd2 d5 12. Bxa6 Rxa6 13. Ne5 {½-½ (59) Nyberg,M (2062)-Stone,A (2027) Wellington 2013}) 7. Bg5 {[%emt 0:01:22]} Qa5 {[%emt 0:00:57]} 8. Be2 {[%emt 0:01:52]} Qxc5 {[%emt 0:00:37]} 9. O-O {[%emt 0:00:32]} d6 {[%emt 0:00:28]} 10. Nbd2 {[%emt 0:01:09]} O-O {[%emt 0:02:09]} 11. Nb3 {[%emt 0:01:16]} Qb6 {[%emt 0:00:26]} 12. Nfd4 {[%emt 0:00:22]} Nf6 {[%emt 0:00:17]} 13. Bf3 {[%emt 0:03:13]} Bd7 {[%emt 0:01:41]} 14. Re1 {[%emt 0:00:54]} a5 {[%emt 0:00:23]} 15. Rb1 {[%emt 0:06:39]} a4 {[%emt 0:00:39]} 16. Nd2 {[%emt 0:00:26]} Qa5 {[%emt 0:00:27]} 17. Bxf6 {[%emt 0:00:58]} Bxf6 {[%emt 0:00:27]} 18. a3 {[%emt 0:00:16]} Rab8 {[%emt 0:02:09]} 19. Bg4 {[%emt 0:06:33]} Bxg4 {[%emt 0:02:17]} 20. Qxg4 {[%emt 0:00:11]} Ne5 {[%emt 0:00:24]} 21. Qe2 {[%emt 0:00:37]} Rfc8 {[%emt 0:01:59]} 22. N4f3 {[%emt 0:02:23]} Nd7 {[%emt 0:01:46]} 23. e4 {[%emt 0:01:01]} Qc5 {[%emt 0:02:33]} 24. Nf1 {[%emt 0:02:22]} b5 {[%emt 0:01:34]} 25. Ne3 {[%emt 0:00:47]} Nb6 {[%emt 0:00:36]} 26. Red1 {[%emt 0:01:44]} Rb7 {[%emt 0:02:27]} 27. Nd5 {[%emt 0:01:10]} Nxd5 {[%emt 0:00:18]} 28. Rxd5 {[%emt 0:00:18]} Qc4 {[%emt 0:01:34]} 29. Rd2 {[%emt 0:01:01]} Rbc7 {[%emt 0:06:19]} 30. Re1 {[%emt 0:00:48]} Rc5 {[%emt 0:03:18]} (30... b4 $5 31. cxb4 (31. axb4 a3 $11) 31... Qxe2 32. Rexe2 Rc1+ 33. Ne1 Bg5 $11) 31. Nd4 {[%emt 0:03:46]} Bxd4 {[%emt 0:05:49]} 32. Rxd4 {[%emt 0:00:12]} Qxe2 {[%emt 0:01:55]} 33. Rxe2 {[%emt 0:00:08]} Kf8 {[%emt 0:00:12]} 34. Red2 {[%emt 0:03:55]} Ke8 {[%emt 0:01:00]} 35. Kf1 {[%emt 0:00:13]} Kd7 {[%emt 0:00:26]} 36. Ke2 {[%emt 0:00:53]} Kc6 {[%emt 0:00:14]} 37. f3 {[%emt 0:02:38]} f5 {[%emt 0:00:27]} 38. Ke3 {[%emt 0:02:22]} f4+ {[%emt 0:04:40]} 39. Kf2 {[%emt 0:00:17]} Rd8 {[%emt 0:00:11]} 40. g3 {[%emt 0:03:43]} e5 {[%emt 0:02:59]} ({Better is} 40... g5 $11) 41. Rd5 {[%emt 0:01:29]} Rxd5 {[%emt 0:00:46]} 42. Rxd5 {[%emt 0:00:10]} g5 {[%emt 0:00:50]} 43. Kg2 {[%emt 0:00:40]} h5 {[%emt 0:00:43]} 44. Kf2 {[%emt 0:13:31]} Rf8 {[%emt 0:00:13]} 45. Kg2 {[%emt 0:02:19]} g4 {[%emt 0:02:40]} 46. fxg4 {[%emt 0:10:21]} f3+ {[%emt 0:01:18]} 47. Kf1 {[%emt 0:03:11]} hxg4 {[%emt 0:00:11]} 48. Kf2 {[%emt 0:03:15]} Rh8 {[%emt 0:00:25]} 49. h4 {[%emt 0:00:13]} gxh3 {[%emt 0:00:16]} 50. Rd1 {[%emt 0:00:12]} Kc5 {[%emt 0:01:01]} 51. Kxf3 {[%emt 0:00:56] [#]} h2 $2 {[%emt 0:00:13]} ({Black should try} 51... Kc4 $1 $19 52. Kf2 Kb3) 52. Kg2 {[%emt 0:01:32] [#]} Kc4 $1 {[%emt 0:00:13]} 53. Kh1 {[%emt 0:00:23] [#]} Kb3 {[%emt 0:00:15]} (53... Rh3 $1 $17 54. Rxd6 Rxg3 55. Kxh2 Rd3 56. Rc6+ Kb3) 54. Rd2 {[%emt 0:00:11] [#]} Rh3 $1 {[%emt 0:00:42]} 55. Rg2 {[%emt 0:00:38] [#]} Kc4 $1 {[%emt 0:00:53]} 56. g4 {[%emt 0:00:48] [#]} Kd3 $1 {[%emt 0:00:56]} 57. g5 {[%emt 0:00:09]} Kxe4 {[%emt 0:00:36]} 58. g6 {[%emt 0:00:18]} Rh8 {[%emt 0:00:03]} 59. g7 {[%emt 0:00:05]} Rg8 {[%emt 0:00:02]} 60. Kxh2 {[%emt 0:00:29] [#]} d5 {[%emt 0:00:12]} (60... Kf5 $1 $17 61. Kh3 Kf6 62. Rf2+ Ke7) 61. Kg1 $1 {[%emt 0:01:22]} d4 {[%emt 0:00:17]} 62. cxd4 {[%emt 0:00:21]} exd4 {[%emt 0:00:02]} 63. Kf2 {[%emt 0:00:19]} Kd3 {[%emt 0:00:43]} 64. Ke1 {[%emt 0:00:20]} Re8+ {[%emt 0:02:05]} 65. Kd1 {[%emt 0:00:26]} Rg8 {[%emt 0:00:07]} 66. Rg3+ {[%emt 0:00:17]} Ke4 {[%emt 0:00:26]} 67. Kd2 {[%emt 0:00:15]} Kf4 {[%emt 0:01:07]} 68. Rg1 {[%emt 0:01:07]} Ke4 {[%emt 0:01:02]} 69. Ke2 {[%emt 0:00:10]} Kf4 {[%emt 0:06:51]} 70. Kd3 {[%emt 0:00:10]} Ke5 {[%emt 0:00:03]} 71. Rg2 {[%emt 0:00:13]} Kd5 {[%emt 0:01:23]} 72. Rg5+ {[%emt 0:00:17]} Kc6 {[%emt 0:00:32]} 73. Kxd4 {[%emt 0:00:09]} Kd6 {[%emt 0:00:21]} 74. Kc3 {[%emt 0:01:44]} Kc6 {[%emt 0:00:07]} 75. Kb4 {[%emt 0:00:05]} Kb6 $18 {[%emt 0:02:46]} 76. Rg6+ {[%emt 0:00:05]} Ka7 {[%emt 0:00:09]} 77. Ka5 {[%emt 0:00:00]} Kb7 {[%emt 0:00:00]} 78. Kxb5 {[%emt 0:00:00]} Ka8 {[%emt 0:00:28]} 79. Kxa4 {[%emt 0:00:11]} Kb7 {[%emt 0:00:32]} 80. Kb5 {[%emt 0:00:08]} Kc7 {[%emt 0:00:10]} 81. b4 {[%emt 0:00:18]} Kb7 {[%emt 0:00:44]} 82. a4 {[%emt 0:00:06]} Ka8 {[%emt 0:00:02]} 83. Kb6 {[%emt 0:00:14]} Kb8 {[%emt 0:00:55]} 84. Rf6 {[%emt 0:00:13]} Rh8 1-0

[Event "DMP-III LIGA Senior PK 2020"]
[Site "Bystre"]
[Date "2020.07.10"]
[Round "5.30"]
[White "Wladyka, Angelika"]
[Black "Krzyzanowska-Zadlo, Lidia"]
[Result "1/2-1/2"]
[ECO "B13"]
[WhiteElo "1601"]
[BlackElo "1801"]
[Annotator "NA RC"]
[PlyCount "42"]
[EventDate "2020.07.05"]
[EventType "team-tourn"]
[EventCountry "POL"]
[SourceTitle "playchess.com"]
[Source "ChessBase"]
[SourceQuality "1"]
[TimeControl "5400+30"]

{[%evp 8,42,24,32767,26,32767,32767,32767,32767,32767,32767,32767,32767,32767,32767,32767,32767,-25,32767,32767,32767,1,41,32767,32767,32767,0,0,0,0,0,0,0,0,0,0,0]} 1. e4 {[%emt 0:00:00]} c6 {[%emt 0:00:00]} 2. d4 {[%emt 0:00:00]} d5 {[%emt 0:00:00]} 3. exd5 {[%emt 0:00:14]} cxd5 {[%emt 0:00:05]} 4. c4 {[%emt 0:00:19]} Nf6 {[%emt 0:01:12]} 5. Nf3 {[%emt 0:02:17]} Nc6 {[%emt 0:02:33]} 6. Nc3 {[%emt 0:01:33]} e6 {[%emt 0:03:11]} 7. Bd3 {[%emt 0:05:23]} dxc4 {[%emt 0:06:22]} 8. Bxc4 {[%emt 0:00:12]} Be7 {[%emt 0:00:10]} 9. O-O {[%emt 0:00:44]} O-O {[%emt 0:00:20]} 10. Bf4 {[%emt 0:02:36]} a6 {[%emt 0:00:44]} 11. a4 {[%emt 0:02:48]} Bd7 {[%emt 0:06:57] D40: Queen's Gambit Declined: Semi-Tarrasch with 5 e3.} 12. Qe2 {[%emt 0:04:42]} Nb4 {[%emt 0:03:18] [#]} 13. Rfe1 $146 {[%emt 0:09:23]} ({Predecessor:} 13. Rad1 Bc6 14. Ne5 Bd5 15. Nxd5 Nfxd5 16. Bd2 Re8 17. Qh5 Rf8 18. Qe2 Qe8 19. Bxb4 Bxb4 20. Bxd5 exd5 {1-0 (40) Leal,P (2211)-Teixeira,R (2377) Sao Paulo 2008}) 13... Re8 {[%emt 0:01:36]} 14. Ne5 {[%emt 0:21:37]} Nfd5 {[%emt 0:09:33]} 15. Nxd5 {[%emt 0:07:45]} exd5 {[%emt 0:03:23]} 16. Bd3 {[%emt 0:03:08]} Nxd3 {[%emt 0:03:09]} 17. Qxd3 {[%emt 0:00:23]} Bb4 {[%emt 0:02:44]} 18. Bd2 {[%emt 0:04:42]} Bxd2 {[%emt 0:07:24]} 19. Qxd2 {[%emt 0:00:05]} f6 {[%emt 0:01:29]} 20. Nxd7 {[%emt 0:05:22]} Qxd7 {[%emt 0:00:33]} 21. b3 {[%emt 0:02:31]} Rac8 $11 {[%emt 0:00:32]} 1/2-1/2

[Event "DMP-III LIGA Senior PK 2020"]
[Site "Bystre"]
[Date "2020.07.11"]
[Round "6.3"]
[White "Stefanski, Adam"]
[Black "Janzer, Hubert"]
[Result "0-1"]
[ECO "A38"]
[WhiteElo "1387"]
[BlackElo "1893"]
[Annotator "NA RC"]
[PlyCount "61"]
[EventDate "2020.07.05"]
[EventType "team-tourn"]
[EventCountry "POL"]
[SourceTitle "playchess.com"]
[Source "ChessBase"]
[SourceQuality "1"]
[TimeControl "5400+30"]

{[%evp 13,44,-16,32767,11,6,4,8,6,11,0,0,32767,2,32767,26,32767,-8,-37,-27,-42,0,-6,-4,-25,9,3,11,5,11,-99,-93,-83,-88]} 1. c4 {[%emt 0:00:00]} Nf6 {[%emt 0:00:00]} 2. Nc3 {[%emt 0:00:00]} c5 {[%emt 0:00:00]} 3. Nf3 {[%emt 0:00:00]} Nc6 {[%emt 0:00:41]} 4. g3 {[%emt 0:00:49]} g6 {[%emt 0:00:06]} 5. Bg2 {[%emt 0:00:04]} Bg7 {[%emt 0:00:04]} 6. O-O {[%emt 0:00:27]} O-O {[%emt 0:00:06]} 7. a3 {[%emt 0:06:54]} d6 {[%emt 0:01:40]} 8. d3 {[%emt 0:00:54]} a6 {[%emt 0:07:33]} 9. Rb1 {[%emt 0:01:45]} Rb8 {[%emt 0:00:25]} 10. b4 {[%emt 0:04:58]} cxb4 {[%emt 0:00:13]} 11. axb4 {[%emt 0:00:18]} b5 $1 {[%emt 0:00:25]} 12. cxb5 {[%emt 0:05:54]} axb5 {[%emt 0:01:58]} 13. Bd2 {[%emt 0:20:48]} d5 {[%emt 0:08:45] A38: Symmetrical English vs ...g6: 4 Bg2 Bg7 5 Nf3 Nf6.} 14. d4 {[%emt 0:28:44]} Bf5 {[%emt 0:04:48]} 15. Bf4 {[%emt 0:10:08] [#]} Bxb1 $146 {[%emt 0:01:34]} ({Predecessor:} 15... Ne4 16. Nxe4 dxe4 17. Nh4 Ra8 18. Nxf5 gxf5 19. e3 Ra4 20. Qh5 Qd5 21. Rbc1 e5 {1-0 (29) Pettersen,J (1858)-Petersson,B (2153) Helsingor 2018}) 16. Bxb8 {[%emt 0:00:23]} Be4 {[%emt 0:00:15]} 17. Bf4 {[%emt 0:01:25]} Qb6 {[%emt 0:01:25]} 18. Qb3 {[%emt 0:03:19]} Nxd4 {[%emt 0:04:47]} (18... e6 $15) 19. Nxd4 {[%emt 0:00:20]} Bxg2 {[%emt 0:00:11]} 20. Kxg2 {[%emt 0:00:40]} Qxd4 {[%emt 0:00:06]} 21. Nxb5 {[%emt 0:03:02]} (21. Rd1 $11 Qa7 22. Nxd5) 21... Qe4+ {[%emt 0:00:11] Double Attack} 22. Kg1 {[%emt 0:00:42]} Qxe2 $17 {[%emt 0:00:09]} 23. Na3 {[%emt 0:08:21]} e5 {[%emt 0:00:15]} 24. Bg5 {[%emt 0:00:14]} Ne4 {[%emt 0:00:36]} 25. Bc1 {[%emt 0:01:45]} d4 {[%emt 0:00:22]} 26. Nc4 {[%emt 0:00:29]} Rc8 {[%emt 0:01:05]} 27. Nb2 {[%emt 0:00:31]} Nxf2 {[%emt 0:03:20]} 28. Rxf2 {[%emt 0:00:15]} Rxc1+ {[%emt 0:00:03]} 29. Kg2 {[%emt 0:00:09]} Qe4+ {[%emt 0:00:08]} 30. Kh3 {[%emt 0:00:33]} Qb7 {[%emt 0:00:22]} 31. Nc4 {[%emt 0:00:51]} 0-1

[Event "DMP-III LIGA Senior PK 2020"]
[Site "Bystre"]
[Date "2020.07.11"]
[Round "6.4"]
[White "Lach, Tomasz"]
[Black "Korys, Dawid"]
[Result "1-0"]
[ECO "D03"]
[WhiteElo "1833"]
[BlackElo "1343"]
[Annotator "NA RC"]
[PlyCount "69"]
[EventDate "2020.07.05"]
[EventType "team-tourn"]
[EventCountry "POL"]
[SourceTitle "playchess.com"]
[Source "ChessBase"]
[SourceQuality "1"]
[TimeControl "5400+30"]

{[%evp 13,69,21,27,21,7,32767,18,5,32767,0,32767,5,53,73,59,15,28,32767,32767,-1,14,32767,32767,105,108,112,141,32767,32767,32767,32767,147,32767,128,121,124,32767,122,120,32767,110,131,32767,32767,32767,32767,32767,32767,32767,32767,32767,254,275,283,412,336,918,969]} 1. d4 {[%emt 0:00:00]} Nf6 {[%emt 0:00:00]} 2. Bg5 {[%emt 0:00:00]} e6 {[%emt 0:00:00]} 3. Nf3 {[%emt 0:00:00]} Be7 {[%emt 0:00:00]} 4. e3 {[%emt 0:00:04]} d5 {[%emt 0:01:48]} 5. Nbd2 {[%emt 0:00:05]} b6 {[%emt 0:00:32]} 6. Bd3 {[%emt 0:00:11] D03: 1 d4 d5 2 Nf3 Nf6 3 Bg5, including Torre Attack with early ...d5.} Ba6 {[%emt 0:00:12]} 7. Bxa6 {[%emt 0:01:02]} Nxa6 {[%emt 0:00:05]} 8. c3 {[%emt 0:00:02] [#]} Nb8 $146 {[%emt 0:02:11]} ({Predecessor:} 8... O-O 9. Ne5 Nb8 10. O-O c5 11. a4 Qc7 12. Bf4 Bd6 13. Re1 Nbd7 14. Ndf3 Nh5 15. Nxd7 Qxd7 {½-½ (22) Ibanez,F (2055)-Millain,D Torre Blanca 2018}) 9. O-O {[%emt 0:01:48]} Nbd7 {[%emt 0:00:18]} 10. Rc1 {[%emt 0:01:37]} c5 {[%emt 0:00:26]} 11. Re1 {[%emt 0:01:46]} h6 {[%emt 0:02:16]} 12. Bh4 {[%emt 0:00:21]} g5 {[%emt 0:01:01]} 13. Bg3 {[%emt 0:00:08]} Nh5 {[%emt 0:00:43]} 14. Qa4 {[%emt 0:05:34]} (14. e4 $16) 14... Nxg3 {[%emt 0:01:30]} 15. hxg3 {[%emt 0:00:07]} O-O {[%emt 0:01:47]} 16. Qc2 {[%emt 0:02:56]} Qc7 {[%emt 0:01:50]} 17. Qd3 {[%emt 0:02:54]} e5 {[%emt 0:03:25]} 18. dxe5 {[%emt 0:00:20]} Nxe5 {[%emt 0:00:15]} 19. Qxd5 {[%emt 0:03:59]} Rad8 {[%emt 0:00:39]} 20. Qxe5 {[%emt 0:00:29]} Qxe5 {[%emt 0:00:09]} 21. Nxe5 {[%emt 0:00:08]} Rxd2 {[%emt 0:00:12]} 22. Nc4 {[%emt 0:03:01]} Rd7 {[%emt 0:00:34]} 23. e4 {[%emt 0:02:42]} Rfd8 {[%emt 0:00:21]} 24. Ne3 {[%emt 0:01:07]} Rd2 {[%emt 0:01:19]} 25. Nd5 {[%emt 0:00:38]} Kf8 {[%emt 0:00:33]} 26. Rb1 {[%emt 0:00:26]} f5 {[%emt 0:01:20]} 27. c4 {[%emt 0:04:52]} fxe4 {[%emt 0:08:16]} 28. Rxe4 {[%emt 0:00:19]} R8xd5 {[%emt 0:02:08]} 29. cxd5 {[%emt 0:00:13]} Rxd5 {[%emt 0:00:08]} 30. Re6 {[%emt 0:02:12]} h5 {[%emt 0:01:00]} 31. Rbe1 {[%emt 0:00:39]} Rd7 {[%emt 0:00:22]} 32. f4 {[%emt 0:01:47]} Kf7 {[%emt 0:01:35]} 33. Rh6 {[%emt 0:02:35]} gxf4 {[%emt 0:00:49]} 34. gxf4 {[%emt 0:00:30]} Rd5 $18 {[%emt 0:00:43]} (34... Bf6 35. Rh7+ (35. Rxh5 Rd2 $18) 35... Bg7) 35. Rh7+ {[%emt 0:00:11]} 1-0

[Event "DMP-III LIGA Senior PK 2020"]
[Site "Bystre"]
[Date "2020.07.11"]
[Round "6.5"]
[White "Medrygal, Rafal"]
[Black "Lach, Mateusz"]
[Result "1-0"]
[ECO "C01"]
[WhiteElo "1258"]
[BlackElo "1674"]
[Annotator "NA RC"]
[PlyCount "155"]
[EventDate "2020.07.05"]
[EventType "team-tourn"]
[EventCountry "POL"]
[SourceTitle "playchess.com"]
[Source "ChessBase"]
[SourceQuality "1"]
[TimeControl "5400+30"]

1. e4 {[%emt 0:00:00]} e6 {[%emt 0:00:00]} 2. Nf3 {[%emt 0:00:00]} d5 {[%emt 0:00:00]} 3. exd5 {[%emt 0:00:17]} exd5 {[%emt 0:00:00]} 4. d4 {[%emt 0:00:27]} Nf6 {[%emt 0:00:00]} 5. Bd3 {[%emt 0:01:19]} Bd6 {[%emt 0:00:08]} 6. Bg5 Bg4 7. h3 {[%emt 0:01:44]} Bh5 {[%emt 0:00:28]} 8. Nbd2 {[%emt 0:01:36]} O-O {[%emt 0:03:09]} 9. O-O {[%emt 0:00:45]} Nbd7 {[%emt 0:00:20]} 10. c3 {[%emt 0:00:19]} c6 {[%emt 0:00:10]} 11. Qc2 {[%emt 0:01:43]} Qc7 {[%emt 0:00:11]} 12. Rfe1 {[%emt 0:03:41]} Rfe8 {[%emt 0:01:11]} 13. c4 {[%emt 0:05:14]} dxc4 {[%emt 0:01:43]} 14. Bxc4 {[%emt 0:02:35]} Bf4 {[%emt 0:01:47]} 15. Bxf4 {[%emt 0:03:47]} Qxf4 {[%emt 0:00:14]} 16. Qb3 {[%emt 0:01:00]} b5 {[%emt 0:00:54]} 17. Bd3 {[%emt 0:01:04]} Qd6 {[%emt 0:01:02]} 18. Rac1 {[%emt 0:03:32]} a6 {[%emt 0:01:39]} 19. Qc2 {[%emt 0:01:15]} Rxe1+ {[%emt 0:00:31]} 20. Rxe1 {[%emt 0:00:10]} c5 {[%emt 0:01:09]} 21. dxc5 {[%emt 0:11:02]} Nxc5 {[%emt 0:01:05]} 22. Be4 {[%emt 0:02:48]} Rd8 {[%emt 0:01:49]} 23. b4 {[%emt 0:09:54]} Ncxe4 {[%emt 0:06:34]} 24. Nxe4 {[%emt 0:01:51]} Nxe4 {[%emt 0:00:54]} 25. Qxe4 {[%emt 0:00:20]} Bxf3 {[%emt 0:00:13]} 26. gxf3 {[%emt 0:01:02]} g6 {[%emt 0:01:15]} 27. a3 {[%emt 0:02:15]} Qd3 {[%emt 0:01:07]} 28. Re3 {[%emt 0:03:33]} Qd1+ {[%emt 0:02:51]} 29. Kg2 {[%emt 0:00:41]} Rd5 {[%emt 0:00:44]} 30. Qf4 {[%emt 0:04:20]} Rf5 {[%emt 0:05:56]} 31. Qg4 {[%emt 0:06:21]} h5 {[%emt 0:01:33]} 32. Qg3 {[%emt 0:01:21]} Qd8 {[%emt 0:03:28]} 33. h4 {[%emt 0:03:08]} Qf6 {[%emt 0:01:23]} 34. Re8+ {[%emt 0:03:21]} Kh7 {[%emt 0:00:41]} 35. Qb8 {[%emt 0:08:07]} Rf4 {[%emt 0:03:03]} 36. Rh8+ {[%emt 0:00:22]} Qxh8 {[%emt 0:00:32]} 37. Qxf4 {[%emt 0:00:04]} Qe8 {[%emt 0:00:54]} 38. Qf6 {[%emt 0:01:12]} Qe6 {[%emt 0:00:48]} 39. Qf4 {[%emt 0:00:36]} Kg7 {[%emt 0:00:21]} 40. Qe3 {[%emt 0:01:05]} Qf6 {[%emt 0:01:31]} 41. Kg3 {[%emt 0:01:03]} Qd6+ {[%emt 0:01:19]} 42. Kg2 {[%emt 0:00:25]} f6 {[%emt 0:00:28]} 43. f4 {[%emt 0:00:45]} Qc6+ {[%emt 0:03:41]} 44. Kg3 {[%emt 0:00:15]} Qc7 {[%emt 0:00:37]} 45. Kg2 {[%emt 0:00:18]} Qc6+ {[%emt 0:00:09]} 46. Kg3 {[%emt 0:00:36]} Qd7 {[%emt 0:00:01]} 47. f3 {[%emt 0:01:06]} Kf7 {[%emt 0:01:42]} 48. Qb6 {[%emt 0:00:56]} Qc8 {[%emt 0:00:48]} 49. Qa7+ {[%emt 0:00:36]} Ke6 {[%emt 0:00:33]} 50. Qb6+ {[%emt 0:00:02]} Kf5 {[%emt 0:02:09]} 51. Qd6 {[%emt 0:00:42]} Qb7 {[%emt 0:04:35]} 52. Qd3+ {[%emt 0:00:58]} Ke6 {[%emt 0:00:01]} 53. Qxg6 {[%emt 0:00:27]} Qf7 {[%emt 0:01:07]} 54. Qe4+ {[%emt 0:02:46]} Kd6 {[%emt 0:00:21]} 55. Qd4+ {[%emt 0:00:47]} Ke7 {[%emt 0:00:36]} 56. Qa7+ {[%emt 0:01:03]} Kf8 {[%emt 0:00:09]} 57. Qxa6 {[%emt 0:00:33]} Qg6+ {[%emt 0:00:19]} 58. Kf2 {[%emt 0:00:25]} Qc2+ {[%emt 0:00:11]} 59. Ke3 {[%emt 0:00:47]} Qc3+ {[%emt 0:01:00]} 60. Ke4 {[%emt 0:01:32]} Qc2+ {[%emt 0:01:13]} 61. Kd5 {[%emt 0:00:52]} Qc4+ {[%emt 0:00:46]} 62. Kd6 {[%emt 0:00:11]} Qxf4+ {[%emt 0:00:14]} 63. Kc5 {[%emt 0:00:31]} Qc4+ {[%emt 0:00:45]} 64. Kb6 {[%emt 0:00:40]} Qxh4 {[%emt 0:00:53]} 65. Qa8+ {[%emt 0:01:27]} Kg7 {[%emt 0:00:13]} 66. Kxb5 {[%emt 0:00:34]} Qg5+ {[%emt 0:00:02]} 67. Ka6 {[%emt 0:00:38]} h4 {[%emt 0:00:03]} 68. b5 {[%emt 0:00:04]} Qc5 {[%emt 0:01:27]} 69. Qb7+ {[%emt 0:00:37]} Kh6 {[%emt 0:00:19]} 70. a4 {[%emt 0:01:11]} h3 {[%emt 0:00:24]} 71. Qb8 {[%emt 0:01:05]} Kg5 {[%emt 0:01:32]} 72. Qg3+ {[%emt 0:00:28]} Kh6 {[%emt 0:00:32]} 73. Qxh3+ {[%emt 0:00:13]} Kg6 {[%emt 0:00:12]} 74. Qg4+ {[%emt 0:00:45]} Kh6 {[%emt 0:00:18]} 75. b6 {[%emt 0:00:30]} Qc6 {[%emt 0:00:28]} 76. Qe4 {[%emt 0:01:00]} Qd6 {[%emt 0:01:41]} 77. Ka7 {[%emt 0:00:36]} Qd7+ {[%emt 0:00:10]} 78. b7 {[%emt 0:00:23]} 1-0

[Event "DMP-III LIGA Senior PK 2020"]
[Site "Bystre"]
[Date "2020.07.11"]
[Round "6.6"]
[White "Wladyka, Angelika"]
[Black "Trybowska, Anna"]
[Result "1/2-1/2"]
[ECO "C50"]
[WhiteElo "1601"]
[BlackElo "1583"]
[Annotator "NA"]
[PlyCount "27"]
[EventDate "2020.07.05"]
[EventType "team-tourn"]
[EventCountry "POL"]
[SourceTitle "playchess.com"]
[Source "ChessBase"]
[SourceQuality "1"]
[TimeControl "5400+30"]

1. e4 {[%emt 0:00:00]} e5 {[%emt 0:00:00]} 2. Nf3 {[%emt 0:00:00]} Nc6 {[%emt 0:00:00]} 3. Bc4 {[%emt 0:00:00]} Bc5 {[%emt 0:00:12]} 4. Nc3 {[%emt 0:00:00]} Nf6 {[%emt 0:00:10]} 5. O-O {[%emt 0:00:00]} d6 {[%emt 0:00:11]} 6. d3 {[%emt 0:01:48]} h6 {[%emt 0:00:35]} 7. Nd5 {[%emt 0:00:12]} Bg4 {[%emt 0:00:20]} 8. h3 {[%emt 0:00:34]} Bh5 {[%emt 0:00:12]} 9. c3 {[%emt 0:00:41]} O-O {[%emt 0:00:12]} 10. Be3 {[%emt 0:00:24]} Bb6 {[%emt 0:00:08]} 11. Bxb6 {[%emt 0:00:38]} axb6 {[%emt 0:00:07]} 12. a3 {[%emt 0:00:12]} Nxd5 {[%emt 0:00:31]} 13. Bxd5 {[%emt 0:00:08]} Qd7 {[%emt 0:00:31]} 14. Re1 {[%emt 0:00:26]} 1/2-1/2

[Event "DMP-III LIGA Senior PK 2020"]
[Site "Bystre"]
[Date "2020.07.11"]
[Round "6.9"]
[White "Chowaniec, Artur"]
[Black "Biesiadecki, Adam"]
[Result "1/2-1/2"]
[ECO "D00"]
[WhiteElo "1530"]
[BlackElo "1539"]
[Annotator "NA"]
[PlyCount "50"]
[EventDate "2020.07.05"]
[EventType "team-tourn"]
[EventCountry "POL"]
[SourceTitle "playchess.com"]
[Source "ChessBase"]
[SourceQuality "1"]
[TimeControl "5400+30"]

1. Nh3 {[%emt 0:00:00]} Nh6 {[%emt 0:00:00]} 2. Ng5 {[%emt 0:00:07]} Ng4 {[%emt 0:00:00]} 3. Nf3 {[%emt 0:00:46]} Nf6 {[%emt 0:00:00]} 4. Nc3 {[%emt 0:00:10]} Nc6 {[%emt 0:00:00]} 5. Nb5 {[%emt 0:00:08]} Nb4 {[%emt 0:00:00]} 6. Na3 {[%emt 0:00:09]} Na6 {[%emt 0:00:05]} 7. Ng1 {[%emt 0:00:08]} Nb8 {[%emt 0:00:06]} 8. Nb1 {[%emt 0:00:05]} Ng8 9. d4 {[%emt 0:00:05]} d5 {[%emt 0:00:16]} 10. c3 {[%emt 0:00:09]} c6 {[%emt 0:00:06]} 11. e3 {[%emt 0:00:04]} e6 {[%emt 0:00:07]} 12. Nf3 {[%emt 0:00:06]} Nf6 {[%emt 0:00:06]} 13. Bd3 {[%emt 0:00:06]} Bd6 {[%emt 0:00:05]} 14. O-O {[%emt 0:00:06]} O-O {[%emt 0:00:07]} 15. Re1 {[%emt 0:00:07]} h6 {[%emt 0:00:18]} 16. h3 {[%emt 0:00:05]} a6 {[%emt 0:00:12]} 17. a3 {[%emt 0:00:05]} b5 {[%emt 0:00:05]} 18. b4 {[%emt 0:00:05]} Nbd7 {[%emt 0:00:12]} 19. Nbd2 {[%emt 0:00:07]} Nb6 {[%emt 0:00:08]} 20. Nb3 {[%emt 0:00:07]} Qc7 {[%emt 0:00:06]} 21. Qc2 {[%emt 0:00:07]} Bd7 {[%emt 0:00:10]} 22. Bd2 {[%emt 0:00:06]} Rac8 {[%emt 0:00:08]} 23. Rac1 {[%emt 0:00:07]} Rfd8 {[%emt 0:00:07]} 24. Red1 {[%emt 0:00:15]} Na4 {[%emt 0:00:06]} 25. Na5 {[%emt 0:00:10]} Be7 {[%emt 0:00:18]} 1/2-1/2